bitfinex/quotes_SOLUSD_20251118
["timestamp","ask_amount","ask_price","bid_price","bid_amount"]
[1763457691035,0.66,137.46,137.42,8.15752974]
[1763457691686,7.48752974,137.45,137.41,9.78882769]
[1763457691968,7.48752974,137.45,137.41,10.45882769]
[1763457692146,8.14752974,137.46,137.41,17.94635743]
[1763457692542,0.66,137.45,137.42,8.15752974]
[1763457692875,0.66,137.45,137.42,0.67]
[1763457693460,5.0,137.45,137.42,0.67]
[1763457694450,5.0,137.45,137.41,9.78882769]
[1763457694794,5.0,137.45,137.41,10.45882769]
[1763457694947,0.66,137.44,137.4,7.48752974]
[1763457695142,0.66,137.44,137.4,8.15752974]
[1763457695538,7.48752974,137.42,137.39,0.1]
[1763457695768,11.82752974,137.41,137.39,0.1]
[1763457695961,12.48752974,137.41,137.39,0.1]
[1763457696362,8.14752974,137.4,137.39,0.1]
[1763457698858,13.70380092,137.4,137.39,0.1]
[1763457699792,18.04380092,137.4,137.39,0.1]
[1763457701484,5.0,137.4,137.39,0.1]
[1763457701668,18.04380092,137.4,137.39,0.1]
[1763457703059,13.70380092,137.4,137.39,0.1]
[1763457703287,18.04380092,137.4,137.39,0.1]
[1763457704380,112.48882769,137.45,137.39,0.1]
[1763457704381,0.72,137.43,137.39,0.1]
[1763457704677,36.22476092,137.42,137.39,0.1]
[1763457705267,35.50476092,137.42,137.39,0.1]
[1763457705477,0.72,137.41,137.39,0.1]
[1763457705689,13.04380092,137.41,137.39,0.1]
[1763457706183,4.34,137.4,137.39,0.1]
[1763457708167,31.16476092,137.42,137.39,0.81]
[1763457708371,4.34,137.4,137.39,0.81]
[1763457708766,31.88476092,137.42,137.39,0.81]
[1763457708968,17.38380092,137.41,137.39,0.1]
[1763457709980,4.34,137.41,137.39,0.1]
[1763457710182,17.38380092,137.41,137.39,0.1]
[1763457710374,13.04380092,137.4,137.39,0.1]
[1763457710572,18.10380092,137.41,137.39,0.1]
[1763457711368,13.76380092,137.4,137.39,0.1]
[1763457717108,31.88476092,137.4,137.39,0.1]
[1763457717399,13.76380092,137.4,137.39,0.1]
[1763457718699,4.34,137.41,137.39,0.1]
[1763457718700,13.04380092,137.41,137.39,0.1]
[1763457718905,4.34,137.4,137.39,0.1]
[1763457719607,22.46096,137.4,137.39,0.1]
[1763457720509,36.22476092,137.4,137.39,0.1]
[1763457726006,18.84096,137.4,137.39,0.1]
[1763457726186,23.18096,137.4,137.39,0.1]
[1763457726382,36.22476092,137.4,137.39,0.1]
[1763457728290,51.33086485,137.4,137.39,0.1]
[1763457728490,64.37466577,137.4,137.39,0.1]
[1763457728696,51.33086485,137.4,137.39,0.1]
[1763457728904,64.37466577,137.4,137.39,0.1]
[1763457729291,64.37466577,137.4,137.38,0.1]
[1763457729497,30.86990485,137.39,137.38,0.1]
[1763457729725,36.86145926,137.39,137.38,0.1]
[1763457730286,18.12096,137.36,137.32,0.1]
[1763457730486,13.04380092,137.33,137.32,0.1]
[1763457730688,17.38380092,137.33,137.32,0.1]
[1763457730909,18.10380092,137.33,137.32,0.1]
[1763457731699,27.89262861,137.33,137.32,0.1]
[1763457731902,33.20953878,137.33,137.32,0.1]
[1763457733019,28.86953878,137.33,137.32,0.1]
[1763457733229,19.08071109,137.33,137.32,0.1]
[1763457733399,23.42071109,137.33,137.32,0.1]
[1763457733598,18.10380092,137.33,137.32,0.1]
[1763457734592,31.16476092,137.33,137.32,0.1]
[1763457734845,13.04380092,137.35,137.32,0.75]
[1763457735088,4.34,137.33,137.32,0.75]
[1763457735292,22.46096,137.33,137.32,0.75]
[1763457736915,4.34,137.33,137.32,0.75]
[1763457737119,17.38380092,137.33,137.32,0.1]
[1763457737727,18.05380092,137.33,137.32,0.1]
[1763457740319,41.50012985,137.33,137.32,0.1]
[1763457740608,36.17476092,137.33,137.32,0.1]
[1763457740802,35.50476092,137.33,137.32,0.1]
[1763457741006,22.46096,137.33,137.32,0.1]
[1763457741225,35.50476092,137.33,137.32,0.1]
[1763457741799,31.16476092,137.33,137.32,0.1]
[1763457742038,35.50476092,137.33,137.32,0.1]
[1763457744141,22.46096,137.33,137.32,0.1]
[1763457744513,35.50476092,137.33,137.32,0.1]
[1763457744837,36.22476092,137.33,137.32,0.1]
[1763457745002,35.50476092,137.33,137.32,0.1]
[1763457748232,22.46096,137.33,137.32,0.1]
[1763457748433,35.50476092,137.33,137.32,0.1]
[1763457756230,40.8446858,137.33,137.32,0.1]
[1763457756433,41.56464995,137.33,137.32,0.1]
[1763457758237,40.84464995,137.33,137.32,0.1]
[1763457758410,27.90978769,137.3,137.29,0.1]
[1763457758613,50.63347764,137.3,137.29,0.1]
[1763457758813,51.35347764,137.3,137.29,0.1]
[1763457759014,23.46023203,137.3,137.29,0.1]
[1763457759232,35.50476092,137.3,137.29,0.1]
[1763457759442,17.38380092,137.3,137.29,0.1]
[1763457760131,13.04380092,137.3,137.29,0.1]
[1763457760316,0.72,137.35,137.29,0.76]
[1763457760636,4.34,137.34,137.29,0.76]
[1763457760833,12.83614004,137.33,137.29,0.76]
[1763457761008,7.49673559,137.33,137.29,0.76]
[1763457761421,4.34,137.32,137.29,0.76]
[1763457762538,7.49673559,137.31,137.29,0.76]
[1763457762720,11.83673559,137.3,137.29,0.76]
[1763457762919,7.48991824,137.3,137.29,0.76]
[1763457763227,4.34,137.3,137.29,0.76]
[1763457780840,13.55773942,137.3,137.29,0.1]
[1763457782144,31.67869942,137.3,137.29,0.1]
[1763457783978,13.55773942,137.3,137.29,0.1]
[1763457786548,18.12096,137.28,137.27,0.1]
[1763457786860,25.79648535,137.28,137.27,0.1]
[1763457787042,12.93874593,137.26,137.25,0.1]
[1763457787243,18.12096,137.24,137.23,0.1]
[1763457787452,30.97869942,137.24,137.23,0.1]
[1763457787771,31.67869942,137.24,137.23,0.1]
[1763457788269,4.34,137.24,137.23,0.79]
[1763457789052,18.12096,137.26,137.23,0.79]
[1763457789360,4.34,137.25,137.23,0.79]
[1763457792368,8.19991824,137.25,137.23,0.1]
[1763457792580,7.48991824,137.25,137.23,0.1]
[1763457792948,7.48991824,137.25,137.23,0.79]
[1763457793469,7.48991824,137.25,137.23,0.1]
[1763457793773,7.48991824,137.25,137.23,0.79]
[1763457794897,4.34,137.25,137.23,0.79]
[1763457795190,18.12096,137.25,137.23,0.79]
[1763457795364,4.34,137.24,137.23,0.79]
[1763457798078,18.12096,137.25,137.23,0.79]
[1763457798259,102.7,137.28,137.24,3.14991824]
[1763457798260,4.34,137.26,137.24,3.14991824]
[1763457798462,22.46096,137.26,137.25,0.69]
[1763457801959,22.46096,137.26,137.23,3.24991824]
[1763457802164,3.14991824,137.24,137.23,0.77]
[1763457802465,3.14991824,137.24,137.23,0.1]
[1763457802466,7.48991824,137.24,137.23,0.1]
[1763457802679,8.20991824,137.24,137.23,0.1]
[1763457803696,7.48991824,137.24,137.23,0.1]
[1763457803864,25.61087824,137.24,137.23,0.1]
[1763457805283,22.46096,137.24,137.23,0.1]
[1763457805587,25.61087824,137.24,137.23,0.1]
[1763457806396,22.46096,137.24,137.23,0.1]
[1763457806765,26.33087824,137.24,137.23,0.1]
[1763457807664,8.20991824,137.24,137.23,0.1]
[1763457809182,102.7,137.26,137.23,0.77]
[1763457809492,4.34,137.25,137.23,0.77]
[1763457809696,18.12096,137.24,137.23,0.77]
[1763457811596,8.20991824,137.25,137.23,0.1]
[1763457811785,7.48991824,137.25,137.23,0.1]
[1763457811992,7.48991824,137.25,137.23,0.77]
[1763457815300,18.12096,137.24,137.23,0.77]
[1763457816374,4.34,137.25,137.23,0.77]
[1763457816570,18.12096,137.24,137.23,0.77]
[1763457816991,3.86991824,137.24,137.23,0.1]
[1763457817183,4.34,137.25,137.23,0.1]
[1763457817389,8.20991824,137.25,137.23,0.1]
[1763457817709,3.14991824,137.24,137.23,0.1]
[1763457818277,18.12096,137.26,137.23,0.77]
[1763457818613,7.48991824,137.25,137.23,0.77]
[1763457818905,4.34,137.25,137.23,0.77]
[1763457819290,7.48991824,137.25,137.23,0.77]
[1763457822794,9.26548909,137.25,137.23,0.77]
[1763457825607,9.26548909,137.25,137.23,0.1]
[1763457825902,9.97548909,137.25,137.23,0.1]
[1763457826078,5.63548909,137.24,137.23,0.1]
[1763457826482,10.28739679,137.24,137.23,0.1]
[1763457826887,10.99739679,137.24,137.23,0.1]
[1763457829594,32.74835679,137.24,137.23,0.1]
[1763457830410,33.45835679,137.24,137.23,0.1]
[1763457832003,28.5328677,137.24,137.23,0.1]
[1763457832203,33.45835679,137.24,137.23,0.1]
[1763457834087,25.12622448,137.24,137.23,0.1]
[1763457834393,18.12096,137.21,137.18,0.1]
[1763457834598,25.12622448,137.24,137.18,0.1]
[1763457834599,4.92548909,137.19,137.18,0.1]
[1763457835296,4.92548909,137.19,137.18,0.82]
[1763457835897,4.92548909,137.19,137.18,0.1]
[1763457836099,18.12096,137.16,137.15,0.1]
[1763457836299,32.74268091,137.16,137.15,0.1]
[1763457836623,33.45268091,137.16,137.15,0.1]
[1763457837114,33.45268091,137.16,137.14,0.1]
[1763457837294,18.12096,137.12,137.06,0.72]
[1763457837612,18.12096,137.12,137.03,4.92548909]
[1763457837613,4.92548909,137.07,137.03,0.72]
[1763457837912,4.92548909,137.05,137.04,0.72]
[1763457838495,4.34,137.06,137.04,0.72]
[1763457838897,4.92548909,137.05,137.04,0.72]
[1763457839092,4.92548909,137.05,137.02,0.72]
[1763457839306,4.92548909,137.03,137.02,0.72]
[1763457839617,4.92548909,137.03,136.99,4.0]
[1763457839798,18.12096,137.06,136.99,3.28]
[1763457839799,5.31239883,137.02,136.99,3.28]
[1763457840004,4.34,137.02,137.0,5.64548909]
[1763457840198,14.14882769,137.06,137.0,0.72]
[1763457840396,4.92548909,137.03,137.0,0.72]
[1763457840598,9.85097818,137.01,136.99,3.28]
[1763457840899,14.14882769,137.03,137.0,0.72]
[1763457840900,18.12096,137.03,137.0,0.72]
[1763457841302,4.38,137.04,137.0,0.72]
[1763457841514,4.38,137.06,137.01,14.71431678]
[1763457841713,4.92548909,137.07,137.02,4.92548909]
[1763457841925,4.92548909,137.07,137.02,0.72]
[1763457842123,4.92548909,137.07,137.03,0.72]
[1763457842339,4.92548909,137.06,137.03,0.72]
[1763457842640,4.92548909,137.05,137.03,0.72]
[1763457844499,4.92548909,137.04,137.03,0.72]
[1763457846020,3.7,137.08,137.03,0.72]
[1763457846222,4.92548909,137.04,137.03,0.72]
[1763457846608,18.12096,137.03,136.99,4.0]
[1763457846813,4.92548909,137.0,136.99,3.28]
[1763457847410,4.92548909,137.0,136.99,4.0]
[1763457849017,4.92548909,137.01,136.99,4.0]
[1763457849211,18.12096,137.02,136.99,4.0]
[1763457849212,4.92548909,137.0,136.99,4.0]
[1763457849616,4.92548909,137.01,136.99,4.0]
[1763457849816,4.92548909,137.01,136.99,3.28]
[1763457850107,4.92548909,137.03,137.0,0.72]
[1763457850926,9.30548909,137.05,137.0,0.72]
[1763457851133,4.92548909,137.05,137.0,0.72]
[1763457851438,4.92548909,137.05,137.01,9.78882769]
[1763457851608,4.92548909,137.05,137.01,14.71431678]
[1763457851937,4.92548909,137.07,137.03,9.78882769]
[1763457852234,4.92548909,137.07,137.04,0.69]
[1763457853029,4.92548909,137.06,137.04,0.69]
[1763457854023,4.92548909,137.07,137.04,0.69]
[1763457856034,9.30548909,137.1,137.04,0.69]
[1763457856207,4.92548909,137.09,137.04,5.61548909]
[1763457856639,4.92548909,137.09,137.05,0.69]
[1763457857151,4.92548909,137.06,137.03,0.69]
[1763457857438,4.92548909,137.06,137.04,0.69]
[1763457862907,4.92548909,137.07,137.04,0.69]
[1763457863210,0.68,137.09,137.04,0.69]
[1763457863211,4.92548909,137.08,137.04,0.69]
[1763457864540,4.92548909,137.07,137.04,0.69]
[1763457865427,4.92548909,137.06,137.02,0.67]
[1763457865612,4.92548909,137.06,137.03,0.67]
[1763457865817,0.68,137.08,137.03,0.67]
[1763457866026,4.92548909,137.06,137.03,0.67]
[1763457867825,4.92548909,137.07,137.03,0.67]
[1763457872040,4.92548909,137.07,137.03,5.59548909]
[1763457872438,4.92548909,137.07,137.04,0.67]
[1763457872840,0.68,137.09,137.04,0.67]
[1763457873042,4.92548909,137.07,137.04,0.67]
[1763457875339,4.92548909,137.08,137.04,0.67]
[1763457876252,5.60548909,137.08,137.04,0.67]
[1763457876957,4.92548909,137.07,137.04,0.67]
[1763457878654,4.92548909,137.05,137.02,0.67]
[1763457879231,5.32548909,137.04,137.02,0.67]
[1763457882667,0.4,137.04,137.02,0.67]
[1763457883378,5.75865882,137.04,137.02,3.83148737]
[1763457883552,0.4,137.04,137.02,0.67]
[1763457883750,0.4,137.04,137.03,0.71]
[1763457883955,5.75853985,137.04,137.03,0.71]
[1763457884149,0.4,137.04,137.03,0.71]
[1763457897595,0.4,137.04,137.03,13.66031506]
[1763457899475,0.4,137.04,137.03,10.49882769]
[1763457900303,0.4,137.04,137.03,0.71]
[1763457900584,0.4,137.04,137.01,5.07]
[1763457900797,0.4,137.04,137.01,0.71]
[1763457900798,3.16148737,137.03,137.01,0.71]
[1763457901094,3.16148737,137.03,136.99,3.99]
[1763457901251,3.87148737,137.03,136.99,3.28]
[1763457901455,3.16148737,137.03,137.0,0.71]
[1763457902378,3.56148737,137.04,137.0,3.87148737]
[1763457902779,3.56148737,137.04,137.01,0.71]
[1763457903158,4.27148737,137.04,137.01,0.71]
[1763457903681,3.56148737,137.04,137.01,0.71]
[1763457904471,3.16148737,137.03,137.01,0.71]
[1763457904783,1.11,137.04,137.01,0.71]
[1763457905005,4.27148737,137.04,137.01,0.71]
[1763457905378,0.4,137.04,137.03,3.16148737]
[1763457905767,0.4,137.04,137.03,3.87148737]
[1763457906191,0.4,137.04,137.03,0.71]
[1763457906501,0.4,137.04,137.03,3.87148737]
[1763457907371,0.4,137.04,137.03,0.71]
[1763457907566,0.4,137.04,137.03,13.66031506]
[1763457907878,0.4,137.04,137.01,4.36]
[1763457908085,0.4,137.04,137.02,0.71]
[1763457909068,0.4,137.04,137.03,12.95031506]
[1763457909463,0.4,137.04,137.03,13.66031506]
[1763457910174,0.4,137.04,137.01,3.87148737]
[1763457910708,0.4,137.04,137.02,0.71]
[1763457912777,0.4,137.04,137.02,3.87148737]
[1763457913799,0.4,137.04,137.02,0.71]
[1763457914971,4.22148737,137.04,137.0,0.71]
[1763457915267,0.4,137.04,137.01,0.71]
[1763457916476,0.4,137.04,137.02,12.95031506]
[1763457916889,0.4,137.04,137.03,0.71]
[1763457918074,0.4,137.04,137.01,0.71]
[1763457918281,0.4,137.04,136.99,3.28]
[1763457918282,3.56148737,137.04,137.0,18.02031506]
[1763457918493,0.4,137.04,137.01,0.71]
[1763457918687,0.4,137.04,137.01,3.87148737]
[1763457918901,0.4,137.04,137.01,0.71]
[1763457919206,3.16148737,137.03,136.99,3.99]
[1763457919499,3.16148737,137.03,137.0,0.7]
[1763457921488,3.56148737,137.04,137.0,0.7]
[1763457921814,3.16148737,137.02,137.0,0.7]
[1763457922109,4.23148737,137.04,137.0,0.7]
[1763457922897,3.16148737,137.01,136.99,3.28]
[1763457923103,27.83605796,137.0,136.99,3.28]
[1763457923285,9.71509796,137.0,136.99,3.28]
[1763457923609,10.38509796,137.0,136.99,3.28]
[1763457923778,5.05,137.0,136.99,3.28]
[1763457923979,13.54079865,137.0,136.99,3.28]
[1763457924185,8.21148737,137.0,136.99,3.28]
[1763457924384,5.05,137.0,136.99,3.28]
[1763457924583,8.21148737,137.0,136.99,3.28]
[1763457925510,13.53900894,137.0,136.99,3.28]
[1763457925808,13.53900894,137.0,136.9,3.16148737]
[1763457925809,18.12096,136.97,136.9,3.16148737]
[1763457925986,3.16148737,136.95,136.91,0.7]
[1763457926182,4.38,136.96,136.91,0.7]
[1763457926404,3.16148737,136.95,136.91,0.7]
[1763457926608,3.83148737,136.95,136.91,0.7]
[1763457926983,3.16148737,136.94,136.91,0.7]
[1763457927179,4.38,136.93,136.9,0.7]
[1763457927404,7.54148737,136.93,136.9,0.7]
[1763457927991,8.21148737,136.93,136.88,0.7]
[1763457928198,3.16148737,136.92,136.88,0.7]
[1763457928392,3.83148737,136.92,136.88,0.7]
[1763457928593,3.16148737,136.92,136.88,0.7]
[1763457928887,3.83148737,136.92,136.88,0.7]
[1763457929297,3.16148737,136.91,136.88,0.7]
[1763457929606,4.38,136.93,136.88,0.7]
[1763457929812,5.05,136.93,136.88,0.7]
[1763457930121,3.16148737,136.91,136.88,0.7]
[1763457931286,3.16148737,136.93,136.88,3.86148737]
[1763457931482,0.67,136.99,136.92,3.16148737]
[1763457931685,4.38,136.97,136.94,3.16148737]
[1763457932001,4.38,136.97,136.95,0.7]
[1763457932202,4.38,136.97,136.95,3.86148737]
[1763457932422,3.16148737,136.99,136.95,0.7]
[1763457932592,3.16148737,136.99,136.96,0.7]
[1763457932985,0.67,137.0,136.96,0.7]
[1763457933186,18.12096,137.03,136.96,0.7]
[1763457933408,3.16148737,136.99,136.96,0.7]
[1763457934186,3.16148737,136.98,136.96,0.7]
[1763457934588,3.16148737,136.99,136.96,0.7]
[1763457936017,3.83148737,136.99,136.95,0.7]
[1763457936315,3.16148737,137.03,136.98,3.16148737]
[1763457936492,7.54148737,137.03,136.98,3.16148737]
[1763457936691,0.67,137.02,136.96,0.7]
[1763457936917,3.16148737,137.0,136.96,0.7]
[1763457937926,3.16148737,137.0,136.96,3.86148737]
[1763457938098,0.67,137.02,136.96,3.86148737]
[1763457938292,3.16148737,136.97,136.94,0.7]
[1763457938495,3.16148737,136.96,136.94,0.7]
[1763457939425,3.16148737,136.97,136.94,0.7]
[1763457939999,7.54148737,136.98,136.94,3.86148737]
[1763457940314,3.16148737,136.96,136.94,0.7]
[1763457940620,3.16148737,136.97,136.95,0.7]
[1763457940826,7.54148737,136.98,136.95,0.7]
[1763457940993,8.21148737,136.98,136.94,0.7]
[1763457941199,3.16148737,136.97,136.94,0.7]
[1763457942128,3.16148737,136.96,136.94,0.7]
[1763457942297,3.16148737,136.96,136.94,0.68]
[1763457942492,3.16148737,136.97,136.94,0.68]
[1763457943727,3.16148737,136.97,136.9,9.78882769]
[1763457943728,3.16148737,136.95,136.91,0.68]
[1763457943901,3.16148737,136.94,136.91,0.68]
[1763457944098,0.67,136.96,136.91,0.68]
[1763457944292,3.16148737,136.94,136.91,0.68]
[1763457944708,3.16148737,136.95,136.91,0.68]
[1763457944913,4.94718924,136.95,136.91,0.68]
[1763457945120,4.94718924,136.95,136.91,5.62718924]
[1763457945322,5.61718924,136.96,136.91,5.62718924]
[1763457945518,4.94718924,136.95,136.92,0.68]
[1763457946210,4.94718924,136.96,136.92,5.62718924]
[1763457946411,4.94718924,136.96,136.92,0.68]
[1763457946610,4.94718924,136.95,136.87,11.72475857]
[1763457946795,4.94718924,136.95,136.92,0.68]
[1763457947425,0.67,136.94,136.87,1.93593088]
[1763457947627,4.94718924,136.92,136.88,0.68]
[1763457948099,5.61718924,136.92,136.88,0.68]
[1763457948298,4.38,136.93,136.88,0.68]
[1763457948523,5.61718924,136.92,136.87,1.93593088]
[1763457948730,4.94718924,136.91,136.87,2.61593088]
[1763457948919,4.94718924,136.91,136.88,0.68]
[1763457949230,5.61718924,136.91,136.87,1.93593088]
[1763457949526,0.67,136.9,136.87,1.93593088]
[1763457949717,4.38,136.89,136.87,1.93593088]
[1763457950101,4.38,136.89,136.87,2.61593088]
[1763457950297,4.38,136.89,136.87,1.93593088]
[1763457950497,4.38,136.89,136.87,2.61593088]
[1763457950706,4.38,136.89,136.87,1.93593088]
[1763457950917,4.38,136.9,136.87,1.93593088]
[1763457951113,5.05,136.9,136.87,1.93593088]
[1763457951308,4.94718924,136.95,136.89,4.94718924]
[1763457951617,4.94718924,136.94,136.89,4.94718924]
[1763457951826,4.94718924,136.92,136.89,0.68]
[1763457952129,4.94718924,136.92,136.88,0.68]
[1763457952306,0.67,136.93,136.88,0.68]
[1763457952605,4.94718924,136.92,136.88,0.68]
[1763457953308,0.67,136.93,136.88,0.68]
[1763457953511,4.94718924,136.92,136.88,0.68]
[1763457954523,4.94718924,136.91,136.88,0.68]
[1763457954716,4.94718924,136.92,136.88,0.68]
[1763457954917,5.61718924,136.92,136.88,0.68]
[1763457955344,5.61718924,136.92,136.87,1.93593088]
[1763457955345,4.94718924,136.89,136.87,1.93593088]
[1763457955746,4.94718924,136.9,136.87,1.93593088]
[1763457955914,4.94718924,136.9,136.87,2.61593088]
[1763457956337,4.94718924,136.9,136.87,1.93593088]
[1763457956543,4.94718924,136.9,136.87,2.61593088]
[1763457956840,5.61718924,136.9,136.87,1.93593088]
[1763457957054,5.61718924,136.9,136.87,2.61593088]
[1763457957348,4.38,136.91,136.87,2.61593088]
[1763457957514,5.61718924,136.9,136.87,1.93593088]
[1763457957920,4.94718924,136.88,136.87,1.93593088]
[1763457960021,5.61718924,136.88,136.87,1.93593088]
[1763457960525,4.94718924,136.88,136.87,1.93593088]
[1763457960956,23.06814924,136.88,136.87,1.93593088]
[1763457961249,18.79096,136.88,136.87,1.93593088]
[1763457961425,27.44814924,136.88,136.87,1.93593088]
[1763457961631,22.50096,136.88,136.87,1.93593088]
[1763457962366,4.38,136.88,136.87,2.61593088]
[1763457963158,9.32718924,136.88,136.87,1.93593088]
[1763457963319,4.38,136.88,136.87,1.93593088]
[1763457963649,4.38,136.88,136.87,2.61593088]
[1763457965165,9.32718924,136.88,136.87,1.93593088]
[1763457965535,4.38,136.88,136.87,1.93593088]
[1763457966123,4.38,136.88,136.87,2.61593088]
[1763457966856,4.38,136.88,136.87,1.93593088]
[1763457967235,4.38,136.88,136.87,2.61593088]
[1763457968430,4.38,136.91,136.87,2.61593088]
[1763457968729,9.32718924,136.91,136.88,0.68]
[1763457969939,4.38,136.91,136.88,0.68]
[1763457970146,9.32718924,136.91,136.88,0.68]
[1763457971220,4.94718924,136.9,136.88,0.68]
[1763457971426,9.32718924,136.91,136.88,0.68]
[1763457971626,4.38,136.91,136.88,0.68]
[1763457972057,18.12096,136.93,136.88,0.68]
[1763457972250,4.38,136.92,136.89,4.94718924]
[1763457972455,4.38,136.94,136.9,9.78882769]
[1763457972638,9.32718924,136.94,136.89,4.94718924]
[1763457973034,4.94718924,136.93,136.9,0.68]
[1763457973438,4.94718924,136.92,136.9,0.68]
[1763457976134,5.03,136.94,136.9,0.68]
[1763457976345,4.94718924,136.93,136.9,0.68]
[1763457976853,9.32718924,136.94,136.9,0.68]
[1763457977033,4.94718924,136.93,136.9,0.68]
[1763457977433,5.59718924,136.93,136.9,0.68]
[1763457977647,4.38,136.94,136.9,0.68]
[1763457977958,4.94718924,136.93,136.9,0.68]
[1763457979059,4.38,136.94,136.9,0.68]
[1763457979241,5.06,136.94,136.9,0.68]
[1763457979560,4.94718924,136.93,136.9,0.68]
[1763457981047,4.38,136.94,136.9,0.68]
[1763457981352,18.12096,136.89,136.87,1.93593088]
[1763457981547,4.36,136.88,136.87,1.93593088]
[1763457981750,9.30718924,136.88,136.87,1.93593088]
[1763457982572,9.98718924,136.88,136.87,1.93593088]
[1763457985875,4.94718924,136.88,136.87,1.93593088]
[1763457986043,10.00718924,136.88,136.87,1.93593088]
[1763457988449,28.12814924,136.88,136.87,1.93593088]
[1763457988959,23.18096,136.88,136.87,1.93593088]
[1763457989268,28.12814924,136.88,136.87,1.93593088]
[1763457990188,27.44814924,136.88,136.87,1.93593088]
[1763457990351,23.74814924,136.88,136.87,1.93593088]
[1763457990552,28.12814924,136.88,136.87,1.93593088]
[1763457991050,28.12814924,136.88,136.87,2.65593088]
[1763457991051,27.44814924,136.88,136.87,2.65593088]
[1763457991281,27.44814924,136.88,136.87,1.93593088]
[1763457993279,28.12814924,136.88,136.87,1.93593088]
[1763457993582,27.44814924,136.88,136.87,1.93593088]
[1763458000483,18.12096,136.88,136.87,2.65593088]
[1763458000684,4.94718924,136.93,136.87,7.60312012]
[1763458000873,4.38,136.92,136.89,4.94718924]
[1763458001070,4.38,136.92,136.9,4.94718924]
[1763458001270,4.38,136.92,136.89,5.66718924]
[1763458001660,4.38,136.92,136.9,0.72]
[1763458002166,4.38,136.94,136.9,5.66718924]
[1763458002380,4.38,136.94,136.91,0.69]
[1763458002968,9.32718924,136.94,136.91,0.69]
[1763458003881,4.38,136.94,136.91,0.69]
[1763458004081,4.94718924,136.93,136.91,0.69]
[1763458004859,4.38,136.94,136.87,1.93593088]
[1763458005176,3.1689114,136.92,136.91,0.69]
[1763458005561,3.1689114,136.93,136.91,0.69]
[1763458006360,7.5489114,136.94,136.91,0.69]
[1763458006563,4.38,136.94,136.91,0.69]
[1763458006773,7.5489114,136.94,136.91,0.69]
[1763458007170,4.38,136.94,136.91,0.69]
[1763458007596,0.71,136.93,136.87,1.93593088]
[1763458007768,3.1689114,136.92,136.88,3.8589114]
[1763458007969,3.1689114,136.92,136.89,0.69]
[1763458008206,3.1689114,136.93,136.89,0.69]
[1763458011768,4.38,136.94,136.89,0.69]
[1763458011973,3.1689114,136.92,136.89,0.69]
[1763458012262,7.5289114,136.91,136.89,0.69]
[1763458013197,4.36,136.91,136.89,0.69]
[1763458014378,4.36,136.91,136.89,3.8589114]
[1763458014577,4.36,136.91,136.9,0.69]
[1763458016298,4.36,136.91,136.87,1.93593088]
[1763458016474,4.36,136.91,136.88,0.69]
[1763458016679,7.5289114,136.91,136.88,0.69]
[1763458016887,4.36,136.91,136.88,0.69]
[1763458020387,4.36,136.91,136.89,3.1689114]
[1763458020587,102.7,136.95,136.9,3.1689114]
[1763458020588,105.8689114,136.95,136.9,3.1689114]
[1763458020913,4.36,136.94,136.91,3.8589114]
[1763458021294,4.36,136.94,136.92,0.69]
[1763458024385,4.36,136.94,136.9,3.1689114]
[1763458024584,4.36,136.94,136.92,0.69]